bitfinex/quotes_SOLUSD_20240816
["timestamp","ask_amount","ask_price","bid_price","bid_amount"]
[1723768203695,26.67,142.14,142.09,20.0]
[1723768203850,13.4026,142.15,142.11,20.0]
[1723768204055,6.3677,142.15,142.11,20.0]
[1723768204664,7.0353,142.14,142.11,20.0]
[1723768205865,7.0358,142.13,142.1,62.5927]
[1723768206056,7.0358,142.13,142.1,17.5927]
[1723768206573,7.0353,142.14,142.11,20.0]
[1723768206957,7.0353,142.14,142.09,27.0377]
[1723768206958,7.0359,142.13,142.09,27.0377]
[1723768207190,7.0363,142.12,142.09,20.0]
[1723768207559,26.67,142.15,142.11,20.0]
[1723768209197,7.0358,142.13,142.11,20.0]
[1723768209377,7.0354,142.14,142.11,20.0]
[1723768209555,7.0358,142.13,142.11,20.0]
[1723768210565,7.0358,142.13,142.09,27.0374]
[1723768210763,7.0358,142.13,142.07,20.0]
[1723768210764,26.67,142.13,142.07,20.0]
[1723768211098,7.0389,142.07,142.03,42.7683]
[1723768211461,7.0384,142.08,142.03,42.7683]
[1723768212191,42.4527,142.11,142.07,20.0]
[1723768212501,7.29302904,142.12,142.07,20.0]
[1723768212689,33.1633,142.13,142.07,20.0]
[1723768212991,7.0366,142.12,142.08,20.0]
[1723768213301,40.45458681,142.13,142.07,20.0]
[1723768213471,26.67,142.11,142.07,20.0]
[1723768214490,7.0377,142.1,142.05,44.6384]
[1723768214698,26.67,142.11,142.05,44.6384]
[1723768214699,7.0378,142.09,142.05,44.6384]
[1723768214909,7.0374,142.1,142.07,20.0]
[1723768215489,7.0374,142.1,142.05,44.6386]
[1723768215693,7.0378,142.09,142.05,44.6386]
[1723768216703,7.0383,142.08,142.05,20.0]
[1723768217693,7.0379,142.09,142.05,27.0397]
[1723768218003,7.0379,142.09,142.07,20.0]
[1723768218179,7.0379,142.09,142.05,27.0397]
[1723768218376,7.0379,142.09,142.07,20.0]
[1723768222507,13.78458681,142.13,142.07,20.0]
[1723768222682,6.4933,142.13,142.07,20.0]
[1723768222888,26.67,142.12,142.07,20.0]
[1723768224201,7.0374,142.1,142.07,20.0]
[1723768224816,7.0378,142.09,142.06,62.72309]
[1723768224984,7.0378,142.09,142.06,17.72309]
[1723768225190,7.0378,142.09,142.05,27.0395]
[1723768226314,7.0373,142.1,142.07,20.0]
[1723768226480,7.0369,142.11,142.09,20.0]
[1723768227383,7.29100662,142.14,142.09,20.0]
[1723768227581,7.0361,142.13,142.1,0.12549]
[1723768227781,7.0363,142.12,142.1,0.12549]
[1723768229996,7.0368,142.11,142.07,44.6349]
[1723768230206,10.67,142.1,142.05,20.0]
[1723768230406,7.0379,142.09,142.05,27.0396]
[1723768231305,10.67,142.08,142.03,20.0]
[1723768231519,17.7094,142.06,142.03,20.0]
[1723768231692,10.67,142.06,142.03,20.0]
[1723768231892,17.7089,142.07,142.03,27.0406]
[1723768232095,8.17,142.05,142.01,20.0]
[1723768232319,8.17,142.05,142.01,27.0417]
[1723768232320,15.2099,142.05,142.01,27.0417]
[1723768232623,8.17,142.05,142.01,27.0417]
[1723768233131,10.67,142.03,142.0,24.6472]
[1723768233613,10.67,142.03,142.0,17.6051]
[1723768233916,7.0407,142.04,142.01,20.0]
[1723768234290,7.0407,142.04,142.0,24.647]
[1723768234785,7.0408,142.03,141.99,47.0426]
[1723768235121,7.0402,142.04,141.99,47.0426]
[1723768235437,7.0402,142.04,141.99,64.6481]
[1723768235921,33.7398,142.05,142.01,20.0]
[1723768236129,13.4366,142.06,142.01,40.0]
[1723768236285,13.4366,142.06,141.99,17.6059]
[1723768236286,6.3973,142.06,141.99,17.6059]
[1723768236620,7.0412,142.02,141.98,20.0]
[1723768238799,7.2961439,142.04,142.0,40.0]
[1723768239113,7.0403,142.04,142.0,40.0]
[1723768239425,7.0398,142.05,142.0,47.0421]
[1723768239599,6.3973,142.06,142.02,20.0]
[1723768239600,7.0393,142.06,142.02,20.0]
[1723768239801,7.0398,142.05,142.02,20.0]
[1723768240001,7.0398,142.05,142.01,45.12549]
[1723768240433,7.0398,142.05,142.02,20.0]
[1723768241399,7.0393,142.06,142.02,40.0]
[1723768241714,7.0393,142.06,142.02,47.0411]
[1723768243429,7.0393,142.06,142.02,20.0]
[1723768244027,34.49709684,142.07,142.01,45.25098]
[1723768244198,26.7,142.05,142.0,37.6046]
[1723768244404,26.7,142.05,141.99,7.0425]
[1723768244605,7.0408,142.03,141.98,47.0431]
[1723768245728,7.0408,142.03,141.99,45.0]
[1723768246232,7.0408,142.03,141.98,47.0431]
[1723768246620,26.7,142.05,141.98,47.0431]
[1723768246621,7.0413,142.02,141.98,47.0431]
[1723768246823,7.0413,142.02,141.98,27.0431]
[1723768248420,7.0413,142.02,141.98,47.0431]
[1723768248650,7.0408,142.03,141.99,7.16809]
[1723768248818,7.0408,142.03,141.98,27.0431]
[1723768249255,7.0401,142.05,142.0,27.0418]
[1723768249422,7.0401,142.05,142.02,20.0]
[1723768249853,7.0402,142.04,141.99,64.77439]
[1723768250158,7.0402,142.04,142.01,20.0]
[1723768250455,7.0399,142.05,142.01,20.0]
[1723768250641,7.0399,142.05,142.01,47.0417]
[1723768250824,7.29506118,142.07,142.03,27.0407]
[1723768251030,33.2719,142.09,142.04,20.0]
[1723768251544,7.0383,142.08,142.05,20.0]
[1723768252777,7.0383,142.08,142.03,27.0407]
[1723768252981,7.0383,142.08,142.04,45.25098]
[1723768253182,7.0383,142.08,142.05,20.0]
[1723768253686,7.0383,142.08,142.04,65.25098]
[1723768254388,7.0383,142.08,142.05,20.0]
[1723768255183,13.6098,142.09,142.05,20.0]
[1723768255478,7.0383,142.08,142.05,20.0]
[1723768257273,6.5719,142.09,142.03,44.6419]
[1723768257274,7.54093566,142.07,142.03,44.6419]
[1723768257477,7.0389,142.07,142.03,44.6419]
[1723768258673,7.0389,142.07,142.04,20.0]
[1723768259181,7.0389,142.07,142.03,44.6419]
[1723768259677,26.7,142.07,142.0,17.6053]
[1723768259850,7.0404,142.04,142.0,17.6053]
[1723768260354,26.7,142.05,141.99,20.0]
[1723768260552,26.7,142.03,141.95,20.0]
[1723768260755,7.0429,141.99,141.95,20.0]
[1723768261081,7.0429,141.99,141.95,27.0446]
[1723768261981,7.0423,142.0,141.96,7.0441]
[1723768262655,7.0423,142.0,141.97,20.0]
[1723768263185,7.0429,141.99,141.95,20.0]
[1723768263396,7.0429,141.99,141.95,27.0446]
[1723768264159,7.0429,141.99,141.96,20.0]
[1723768264451,7.0429,141.99,141.95,27.0446]
[1723768266075,26.7,141.99,141.92,20.0]
[1723768266250,26.7,141.99,141.94,20.0]
[1723768266454,26.7,141.99,141.94,27.0452]
[1723768266455,33.743,141.99,141.94,27.0452]
[1723768266658,7.043,141.99,141.94,27.0452]
[1723768267261,7.0432,141.98,141.94,27.0452]
[1723768267661,7.0428,141.99,141.95,7.17009]
[1723768267867,7.0428,141.99,141.95,27.17009]
[1723768268059,7.0424,142.0,141.96,20.0]
[1723768270456,7.0424,142.0,141.96,27.0441]
[1723768270856,42.8519,142.03,141.96,20.0]
[1723768271057,23.1931,142.03,141.98,27.0431]
[1723768271367,16.1519,142.03,141.97,45.0]
[1723768271693,16.1519,142.03,141.96,27.0441]
[1723768271995,7.0419,142.01,141.97,7.0437]
[1723768276387,10.68,142.02,141.94,20.0]
[1723768276600,10.68,141.98,141.93,27.0455]
[1723768276888,10.68,141.98,141.94,7.0451]
[1723768277097,10.68,141.98,141.95,27.0447]
[1723768277590,17.7233,141.98,141.95,20.0]
[1723768278567,10.68,142.0,141.95,20.0]
[1723768278766,17.7226,142.0,141.96,45.12549]
[1723768278963,7.28626051,142.01,141.99,20.0]
[1723768279176,17.722,142.01,141.96,69.77969]
[1723768279391,10.68,142.01,141.98,20.0]
[1723768279761,10.68,142.01,141.98,27.0432]
[1723768280105,10.68,142.01,141.98,47.0432]
[1723768280405,33.8727,142.03,141.98,47.0432]
[1723768280580,7.0408,142.03,141.98,47.0432]
[1723768280894,7.0408,142.03,141.98,27.0432]
[1723768280895,10.68,142.02,141.98,27.0432]
[1723768281073,17.7214,142.02,141.97,7.16909]
[1723768281279,17.7214,142.02,141.98,45.25098]
[1723768281584,17.7214,142.02,141.98,65.12549]
[1723768282771,17.7226,142.0,141.96,37.6101]
[1723768283165,42.72,142.03,141.94,20.0]
[1723768283166,10.68,141.98,141.94,20.0]
[1723768283365,7.0429,141.99,141.96,20.0]
[1723768284181,7.0429,141.99,141.94,40.0]
[1723768284474,7.0429,141.99,141.95,7.0446]
[1723768285186,7.0429,141.99,141.94,47.17049]
[1723768285392,11.18203566,141.98,141.93,17.6137]
[1723768285596,0.50203566,141.97,141.93,17.6137]
[1723768286591,7.0443,141.96,141.93,17.6137]
[1723768286774,7.0438,141.97,141.93,37.6137]
[1723768287688,10.68,141.96,141.93,20.0]
[1723768287871,10.68,141.96,141.91,27.0465]
[1723768288071,7.0448,141.95,141.91,27.0466]
[1723768288276,7.0448,141.95,141.91,20.0]
[1723768288687,7.0448,141.95,141.91,27.0466]
[1723768288896,17.7242,141.96,141.93,20.0]
[1723768290270,7.0449,141.95,141.91,27.0463]
[1723768294772,16.3767,141.97,141.94,20.0]
[1723768294976,7.0435,141.98,141.94,20.0]
[1723768295171,7.0435,141.98,141.95,45.0]
[1723768295397,10.68,141.97,141.92,40.0]
[1723768295598,17.7248,141.95,141.9,27.0468]
[1723768295778,7.2912218,141.99,141.94,27.045]
[1723768295975,15.796,142.01,141.94,20.0]
[1723768295976,17.7236,141.98,141.94,20.0]
[1723768297202,17.7232,141.99,141.94,20.0]
[1723768297499,10.68,141.99,141.96,20.0]
[1723768297705,17.7227,141.99,141.96,20.0]
[1723768298405,23.0970627,142.01,141.98,20.0]
[1723768298406,15.796,142.01,141.98,20.0]
[1723768298909,22.8378,142.01,141.98,20.0]
[1723768300506,15.796,142.01,141.98,20.0]
[1723768301033,22.8378,142.01,141.98,20.0]
[1723768303194,7.0432,141.98,141.93,44.659]
[1723768303393,17.7232,141.98,141.94,7.045]
[1723768304795,17.2232,141.98,141.94,7.045]
[1723768306793,17.2232,141.98,141.93,44.6591]
[1723768308306,17.2232,141.98,141.94,7.0451]
[1723768309191,10.68,141.98,141.94,20.0]
[1723768309405,17.7233,141.98,141.94,27.045]
[1723768310219,7.0433,141.98,141.94,27.045]
[1723768310389,10.68,142.0,141.96,20.0]
[1723768310390,7.0428,141.99,141.96,20.0]
[1723768310589,17.7225,142.0,141.96,20.0]
[1723768311416,17.7225,142.0,141.97,45.0]
[1723768313208,10.68,142.0,141.97,45.0]
[1723768313394,10.68,142.0,141.96,20.0]
[1723768313603,10.68,142.0,141.95,17.73699]
[1723768313820,10.68,142.0,141.96,45.12549]
[1723768314599,10.68,142.0,141.96,65.12549]
[1723768315100,7.0428,141.99,141.96,65.12549]
[1723768315295,10.68,141.98,141.94,20.0]
[1723768316628,17.7235,141.98,141.94,7.0451]
[1723768317129,10.68,141.98,141.94,20.0]
[1723768317336,23.08687169,142.01,141.96,20.0]
[1723768317337,7.0427,141.99,141.96,20.0]
[1723768318511,7.0421,142.01,141.98,20.0]
[1723768318902,24.2059,142.02,141.98,27.0431]
[1723768319104,17.7214,142.02,141.98,27.0431]
[1723768319413,17.7214,142.02,141.98,20.0]
[1723768320843,7.0418,142.01,141.98,20.0]
[1723768322737,17.7214,142.02,141.98,20.0]
[1723768323040,7.0417,142.01,141.98,20.0]
[1723768325113,10.68,142.0,141.96,27.16929]
[1723768325848,17.7223,142.0,141.96,27.16929]
[1723768327234,17.7223,142.0,141.96,27.0438]
[1723768327833,7.0428,141.99,141.95,24.656]
[1723768330824,7.0428,141.99,141.95,44.656]
[1723768331050,7.0428,141.99,141.95,24.656]
[1723768332750,7.0449,141.95,141.91,27.0463]
[1723768332920,10.68,141.94,141.91,20.0]
[1723768334318,17.7253,141.94,141.91,20.0]
[1723768334515,24.90286017,141.98,141.92,20.0]
[1723768334728,7.29476017,141.98,141.95,20.0]
[1723768334929,40.1178,142.01,141.93,20.12549]
[1723768334930,10.68,141.99,141.93,20.12549]
[1723768335851,7.0433,141.98,141.95,20.0]
[1723768336035,7.0433,141.98,141.93,64.78469]
[1723768336349,7.0433,141.98,141.94,45.12549]
[1723768336944,7.0438,141.97,141.94,45.12549]
[1723768337128,17.7238,141.97,141.93,44.78469]
[1723768338148,17.7238,141.97,141.94,0.12549]
[1723768338149,7.0438,141.97,141.94,0.12549]
[1723768338329,7.0438,141.97,141.94,45.12549]
[1723768338641,7.0433,141.98,141.94,45.12549]
[1723768341550,29.80586088,142.01,141.95,20.0]
[1723768341720,10.68,142.0,141.95,20.0]
[1723768342120,11.18203566,142.0,141.95,20.0]
[1723768342647,7.0431,141.99,141.95,20.0]
[1723768343346,7.0437,141.97,141.93,24.6596]
[1723768343528,17.7234,141.98,141.93,24.6596]
[1723768344258,7.0437,141.97,141.93,24.6596]
[1723768346221,7.0437,141.97,141.93,17.6139]
[1723768346422,10.68,141.94,141.9,51.31038864]
[1723768346630,17.7252,141.94,141.9,44.6641]
[1723768348240,15.6809,141.96,141.9,44.6641]
[1723768348241,7.0448,141.95,141.92,20.0]
[1723768348624,22.7255,141.96,141.92,27.0461]
[1723768348825,7.30149052,141.98,141.93,20.0]
[1723768348826,7.0439,141.97,141.93,20.0]
[1723768349569,14.34479052,141.98,141.94,20.0]
[1723768349755,17.98149052,141.98,141.95,45.0]
[1723768349935,10.68,141.98,141.95,65.0]
[1723768350263,17.7233,141.98,141.95,45.0]
[1723768350959,15.6809,142.0,141.96,20.0]
[1723768350960,26.3609,142.0,141.96,20.0]
[1723768351145,33.4034,142.0,141.96,20.0]
[1723768351730,7.0428,141.99,141.96,20.0]
[1723768353442,17.7232,141.98,141.96,20.0]
[1723768358255,7.0439,141.97,141.95,45.12549]
[1723768358450,17.7234,141.98,141.95,20.0]
[1723768358640,7.0438,141.97,141.94,45.0]
[1723768361949,17.723,141.99,141.95,20.0]
[1723768362150,17.723,141.99,141.95,20.12549]
[1723768362667,7.0433,141.98,141.95,20.12549]
[1723768363456,7.0432,141.98,141.95,20.12549]
[1723768363656,7.0432,141.98,141.96,45.12549]
[1723768364064,17.7229,141.99,141.96,45.12549]
[1723768364244,7.0429,141.99,141.96,65.12549]
[1723768364447,7.0429,141.99,141.96,45.12549]
[1723768364858,7.32123555,142.0,141.98,20.0]
[1723768365058,7.0421,142.01,141.98,20.0]
[1723768365562,34.2738371,142.03,141.98,20.0]
[1723768365766,34.2738371,142.03,142.0,20.0]
[1723768365767,17.9948371,142.03,142.0,20.0]
[1723768366974,25.0356371,142.03,142.0,20.0]
[1723768367268,7.0413,142.02,141.99,45.0]
[1723768367473,10.68,142.01,141.98,27.0432]
[1723768368270,10.68,142.01,141.99,20.0]
[1723768368478,10.68,142.03,142.0,20.12549]
[1723768368648,7.0398,142.05,142.02,20.0]
[1723768369540,10.68,142.04,142.02,20.0]
[1723768370475,7.0393,142.06,142.02,20.0]
[1723768370659,17.7197,142.05,142.02,20.0]
[1723768371651,10.68,142.03,142.01,0.12549]
[1723768371852,10.68,142.03,142.0,47.16759]
[1723768372055,10.68,142.03,142.0,27.16759]
[1723768372268,10.68,142.03,142.01,65.0]
[1723768372575,10.68,142.05,142.02,20.0]
[1723768372739,10.68,142.05,142.03,45.25098]
[1723768373141,7.0386,142.08,142.04,40.12549]
[1723768373372,10.68,142.07,142.05,45.0]
[1723768374175,23.4732,142.09,142.06,20.0]
[1723768374473,23.4732,142.09,142.07,45.0]
[1723768374474,10.68,142.09,142.07,45.0]
[1723768375271,7.0378,142.09,142.07,45.0]
[1723768376059,10.68,142.08,142.07,45.0]
[1723768376374,10.68,142.08,142.06,20.0]
[1723768376763,10.68,142.08,142.03,27.0405]
[1723768376950,10.68,142.06,142.03,27.0405]
[1723768377269,17.7197,142.06,142.02,37.6022]
[1723768377467,17.7197,142.06,142.03,20.0]
[1723768378064,17.7197,142.06,142.04,0.12549]
[1723768378472,7.0397,142.05,142.04,0.12549]
[1723768378683,17.7193,142.06,142.04,0.12549]
[1723768380469,10.68,142.06,142.04,45.25098]
[1723768381495,7.0384,142.08,142.04,45.25098]
[1723768381656,35.1737,142.16,142.07,20.0]
[1723768381854,10.68,142.11,142.08,45.25098]
[1723768382059,35.1737,142.16,142.05,0.12549]
[1723768382060,10.68,142.09,142.05,0.12549]
[1723768382260,10.68,142.07,142.01,20.0]
[1723768382482,21.4171,142.13,142.04,20.0]
[1723768382657,10.68,142.09,142.04,20.0]
[1723768382858,10.68,142.09,142.04,27.0402]
[1723768383279,10.68,142.07,142.03,24.6419]
[1723768383609,10.68,142.07,142.04,20.0]
[1723768383781,10.68,142.07,142.04,0.12549]
[1723768383993,7.0396,142.06,142.03,0.12549]
[1723768384278,17.7188,142.07,142.03,45.12549]
[1723768385556,17.7188,142.07,142.04,0.12549]
[1723768385757,17.7188,142.07,142.04,20.12549]
[1723768387465,10.68,142.07,142.04,20.12549]
[1723768389583,10.68,142.07,142.05,1.40786225]
[1723768389787,10.68,142.07,142.05,46.53335225]
[1723768390288,10.68,142.09,142.06,20.0]
[1723768390580,10.68,142.1,142.07,73.69682842]
[1723768390879,10.68,142.1,142.08,20.0]
[1723768391099,10.68,142.1,142.09,45.12549]
[1723768391259,17.7166,142.12,142.09,45.25098]
[1723768392476,7.0354,142.14,142.1,20.0]
[1723768392670,17.7154,142.14,142.11,65.25098]
[1723768392869,17.7153,142.14,142.11,45.25098]
[1723768393765,17.7153,142.14,142.11,65.25098]
[1723768394082,17.7153,142.14,142.11,45.25098]
[1723768394574,7.0349,142.15,142.11,72.28768]
[1723768394779,16.4771,142.17,142.12,20.0]
[1723768394780,7.0343,142.16,142.12,20.0]
[1723768394978,10.68,142.15,142.12,20.0]
[1723768395178,17.7149,142.15,142.13,0.12549]
[1723768395379,7.0344,142.16,142.12,20.0]
[1723768395573,16.4771,142.17,142.13,53.69330911]
[1723768395574,10.68,142.17,142.13,53.69330911]
[1723768395773,7.0334,142.18,142.14,47.0353]
[1723768395962,7.0334,142.18,142.15,45.25098]
[1723768395963,10.68,142.17,142.15,45.25098]
[1723768397270,7.0334,142.18,142.15,45.25098]
[1723768397271,17.7129,142.19,142.15,52.28568]
[1723768397473,17.7129,142.19,142.15,72.28568]
[1723768397988,17.7129,142.19,142.16,20.0]
[1723768398496,7.0322,142.21,142.16,44.6195]
[1723768398718,10.68,142.2,142.17,45.37647]
[1723768399007,10.68,142.18,142.17,45.37647]
[1723768399170,10.68,142.18,142.17,45.25098]
[1723768400292,10.68,142.2,142.17,45.37647]
[1723768400715,10.68,142.2,142.17,52.41017]
[1723768401369,10.68,142.2,142.17,72.41017]
[1723768401970,10.68,142.2,142.17,52.41017]
[1723768402398,10.68,142.31,142.17,52.41017]
[1723768402399,2.82828774,142.27,142.23,20.0]
[1723768402598,7.0283,142.29,142.25,20.0]
[1723768402814,10.68,142.3,142.25,20.0]
[1723768402815,10.68,142.3,142.26,46.65666218]
[1723768403128,17.7077,142.3,142.26,46.65666218]
[1723768403487,22.1224,142.32,142.26,73.68596218]
[1723768403822,7.0275,142.3,142.27,21.40568247]
[1723768404008,7.0275,142.3,142.26,45.25098]
[1723768404009,10.68,142.29,142.26,45.25098]
[1723768404324,10.68,142.29,142.27,1.40567342]
[1723768404682,17.708,142.29,142.27,1.40567342]
[1723768405481,17.708,142.29,142.26,45.25098]
[1723768405681,7.028,142.29,142.27,1.40558364]
[1723768405895,7.028,142.29,142.27,21.40558364]
[1723768406108,7.0283,142.28,142.27,20.0]
[1723768406305,7.0283,142.28,142.27,20.12549]
[1723768406490,7.028,142.29,142.27,65.25098]
[1723768406810,7.028,142.29,142.28,45.25098]
[1723768411604,7.0272,142.31,142.28,46.65651737]
[1723768411924,7.0272,142.31,142.29,20.0]
[1723768412101,7.0272,142.31,142.28,45.25098]
[1723768412523,7.0272,142.31,142.29,20.0]
[1723768412725,7.0272,142.31,142.3,0.12549]
[1723768414226,7.0272,142.31,142.28,45.12549]
[1723768414406,7.0272,142.31,142.29,0.12549]
[1723768415805,7.0272,142.31,142.29,21.53089512]
[1723768416015,7.0264,142.32,142.3,45.12549]
[1723768417804,7.0269,142.31,142.3,45.12549]
[1723768418011,7.0269,142.31,142.3,45.25098]
[1723768419529,7.0269,142.31,141.86,3.62927345]
[1723768419530,7.0292,142.27,142.25,20.0]
[1723768419921,26.59,142.28,142.25,20.0]
[1723768420235,7.0282,142.29,142.25,27.0298]
[1723768420728,7.0282,142.29,142.26,0.25098]
[1723768420938,7.0282,142.29,142.27,0.12549]
[1723768421814,7.0285,142.28,142.25,20.0]
[1723768422007,26.59,142.28,142.25,20.0]
[1723768422816,7.0289,142.27,142.25,20.0]
[1723768423225,7.0289,142.27,142.25,40.0]
[1723768423556,7.0284,142.28,142.26,45.37647]
[1723768423842,7.028,142.29,142.27,21.40557781]
[1723768424217,7.028,142.29,142.27,20.0]
[1723768425124,7.028,142.29,142.24,20.0]
[1723768425125,7.0298,142.25,142.24,20.0]
[1723768425324,33.6198,142.25,142.24,20.0]
[1723768425724,26.59,142.25,142.24,20.0]
[1723768426521,33.6198,142.25,142.24,20.0]
[1723768427139,7.0295,142.26,142.24,20.0]
[1723768427442,7.0298,142.25,142.24,20.0]
[1723768427648,33.6198,142.25,142.24,20.0]
[1723768428217,33.6198,142.25,142.24,20.12549]
[1723768429215,33.6198,142.25,142.24,20.25098]
[1723768429435,22.355,142.3,142.24,20.25098]
[1723768429638,22.9075,142.33,142.26,20.0]
[1723768429814,7.0279,142.29,142.27,1.65653376]
[1723768430017,7.0283,142.28,142.27,0.12549]
[1723768430243,7.0283,142.28,142.25,0.12549]
[1723768430438,7.0293,142.26,142.25,0.25098]
[1723768430749,7.0293,142.26,142.24,20.0]
[1723768431040,33.6189,142.27,142.24,20.0]
[1723768431944,33.6189,142.27,142.25,1.40586717]
[1723768432159,33.6189,142.27,142.24,20.0]
[1723768432320,33.6189,142.27,142.25,0.12549]
[1723768433017,33.6189,142.27,142.25,1.65678385]
[1723768433234,33.6189,142.27,142.25,0.25098]
[1723768433551,2.79876543,142.37,142.34,40.0]
[1723768433552,9.82266543,142.37,142.34,40.0]
[1723768433721,23.855971,142.38,142.36,27.0243]
[1723768433722,0.856171,142.38,142.36,27.0243]
[1723768434038,0.856171,142.38,142.36,20.0]
[1723768434246,0.856171,142.38,142.37,0.12549]
[1723768434842,0.856171,142.38,142.37,1.65555176]
[1723768435343,0.856171,142.38,142.37,0.25098]
[1723768435552,0.856171,142.38,142.37,1.65558519]
[1723768435842,0.856171,142.38,142.37,0.25098]
[1723768437263,0.856171,142.38,142.37,8.80494602]
[1723768437420,7.879571,142.38,142.34,20.12549]
[1723768437622,0.856171,142.38,142.35,0.25098]
[1723768438028,0.856171,142.38,142.35,7.27588]
[1723768438226,0.856171,142.38,142.36,20.0]
[1723768438423,0.856171,142.38,142.37,20.12549]
[1723768438651,0.856171,142.38,142.37,20.25098]
[1723768439033,7.0258,142.34,142.31,20.0]
[1723768439228,33.5849,142.35,142.31,20.0]
[1723768439458,7.026,142.33,142.31,20.0]
[1723768439654,7.026,142.33,142.29,20.0]
[1723768440484,26.56,142.35,142.29,20.0]
[1723768440485,7.0255,142.34,142.31,20.0]
[1723768441478,7.025,142.35,142.31,20.0]
[1723768441670,7.025,142.35,142.32,0.12549]
[1723768441980,7.025,142.35,142.32,0.25098]
[1723768442331,7.0245,142.36,142.32,0.25098]
[1723768442773,7.0259,142.33,142.32,0.25098]
[1723768442954,7.0259,142.33,142.31,20.0]
[1723768443157,7.0255,142.34,142.31,20.0]
[1723768444264,7.0255,142.34,142.3,0.12549]
[1723768444473,7.0255,142.34,142.27,6.2047]
[1723768444474,7.0272,142.31,142.27,20.0]
[1723768444676,6.4857,142.37,142.29,20.0]
[1723768444677,33.0457,142.37,142.29,20.0]
[1723768444877,33.0457,142.37,142.28,17.5703]
[1723768444878,33.0457,142.37,142.31,20.0]
[1723768445037,7.0248,142.36,142.31,27.0269]
[1723768445676,13.5097,142.37,142.32,7.27718]
[1723768445851,13.5097,142.37,142.32,7.40267]
[1723768446542,13.5097,142.37,142.33,45.0]
[1723768447065,13.5097,142.37,142.33,65.0]
[1723768447066,7.0244,142.36,142.33,65.0]
[1723768447276,13.5096,142.37,142.33,72.0258]
[1723768447437,13.5096,142.37,142.33,65.0]
[1723768447637,33.0457,142.37,142.33,45.0]
[1723768447941,7.0254,142.34,142.32,0.25098]
[1723768448148,7.0254,142.34,142.31,45.25098]
[1723768448367,6.4857,142.37,142.32,27.0263]
[1723768448556,7.0243,142.37,142.33,0.25098]
[1723768448871,7.0243,142.37,142.33,45.25098]
[1723768449237,7.879671,142.38,142.34,20.0]
[1723768449438,7.024,142.37,142.35,0.12549]
[1723768450857,0.856171,142.38,142.35,0.12549]
[1723768450858,0.856171,142.38,142.35,45.12549]
[1723768451043,0.856171,142.38,142.36,0.12549]
[1723768451239,0.856171,142.38,142.36,20.12549]
[1723768452349,7.879571,142.38,142.36,20.12549]
[1723768453886,0.856171,142.38,142.36,20.12549]
[1723768454048,0.856171,142.38,142.36,0.12549]
[1723768454250,7.879771,142.38,142.35,45.12549]
[1723768454462,7.0241,142.37,142.33,17.5643]
[1723768454666,7.0241,142.37,142.33,24.5901]
[1723768456168,7.0241,142.37,142.34,45.25098]